fUST/lending_fUST_20260124
["ID","MTS","AMOUNT","RATE_DAILY","PERIOD"]
[403187982,1769258290014,1729.15366647,0.00012001,2]
[403187987,1769258326536,3075.49142732,0.00012001,2]
[403187991,1769258334303,5000.0,0.00012001,2]
[403188002,1769258349544,5000.0,0.00012001,2]
[403188006,1769258357528,541.66121984,0.00012001,2]
[403188015,1769258372514,5000.0,0.00012001,2]
[403188016,1769258395073,5000.0,0.00012001,2]
[403188020,1769258403051,909.61981853,0.00012001,2]
[403188021,1769258418103,5000.0,0.00012001,2]
[403188039,1769258429178,-183.06393063,0.00012115,2]
[403188061,1769258440679,5000.0,0.00012001,2]
[403188079,1769258456145,5000.0,0.00012001,2]
[403188081,1769258463963,5000.0,0.00012001,2]
[403188082,1769258479020,5000.0,0.00012001,2]
[403188084,1769258487441,5000.0,0.00012001,2]
[403188085,1769258488092,-162.78,0.000121,2]
[403188088,1769258495405,577.76891021,0.00012001,2]
[403188089,1769258503188,5000.0,0.00012001,2]
[403188090,1769258511829,4854.44581495,0.00012001,2]
[403188091,1769258519400,852.05326697,0.00012001,2]
[403188097,1769258527485,5000.0,0.00012001,2]
[403188139,1769258538063,511.7509552,0.000104,2]
[403188144,1769258549743,5000.0,0.00012001,2]
[403188145,1769258572289,5000.0,0.00012001,2]
[403188176,1769258594817,5000.0,0.00012001,2]
[403188177,1769258618111,5000.0,0.00012001,2]
[403188178,1769258625881,1286.9378987,0.00012001,2]
[403188179,1769258642105,5000.0,0.00012001,2]
[403188180,1769258664793,5000.0,0.00012001,2]
[403188181,1769258680872,2132.1085636,0.00011536,2]
[403188182,1769258687213,5000.0,0.00012001,2]
[403188183,1769258709944,5000.0,0.00012001,2]
[403188184,1769258732237,5000.0,0.00012001,2]
[403188185,1769258754563,5000.0,0.00012001,2]
[403188186,1769258778131,5000.0,0.00012001,2]
[403188187,1769258779424,-90.15,0.000121,2]
[403188188,1769258779446,-193.77271303,0.00012108,2]
[403188189,1769258793293,160.0,4.2e-07,2]
[403188190,1769258794362,160.0,4.2e-07,2]
[403188191,1769258795428,160.0,4.2e-07,2]
[403188192,1769258796623,160.0,4.2e-07,2]
[403188193,1769258797749,160.0,4.2e-07,2]
[403188194,1769258798763,160.0,4.2e-07,2]
[403188195,1769258799791,160.0,4.2e-07,2]
[403188196,1769258800514,5000.0,0.00012001,2]
[403188197,1769258800817,160.0,4.2e-07,2]
[403188198,1769258801948,160.0,4.2e-07,2]
[403188199,1769258822584,5000.0,0.00012001,2]
[403188200,1769258845354,5000.0,0.00012001,2]
[403188201,1769258867792,5000.0,0.00012001,2]
[403188209,1769258890579,5000.0,0.00012001,2]
[403188217,1769258915141,5000.0,0.00012001,2]
[403188224,1769258937502,5000.0,0.00012001,2]
[403188309,1769258960263,5000.0,0.00012001,2]
[403188379,1769258983199,5000.0,0.00012001,2]
[403188394,1769259004147,1204.94,0.000119,2]
[403188395,1769259004698,1204.94,0.000119,2]
[403188396,1769259005158,1204.94,0.000119,2]
[403188398,1769259005500,5000.0,0.00012001,2]
[403188399,1769259005607,1204.94,0.000119,2]
[403188400,1769259006071,1204.94,0.000119,2]
[403188401,1769259006648,1204.94,0.000119,2]
[403188404,1769259007190,-252.93,0.000121,2]
[403188405,1769259007213,-247.7706017,0.000121,2]
[403188406,1769259007293,1204.94,0.000119,2]
[403188407,1769259007869,1204.94,0.000119,2]
[403188408,1769259008427,1204.94,0.000119,2]
[403188411,1769259009002,1204.94,0.000119,2]
[403188412,1769259009249,-213.12003751,0.000121,2]
[403188413,1769259009638,1204.94,0.000119,2]
[403188415,1769259010195,1204.94,0.000119,2]
[403188416,1769259010753,1204.94,0.000119,2]
[403188418,1769259011318,1204.94,0.000119,2]
[403188420,1769259012016,1204.94,0.000119,2]
[403188421,1769259012559,1204.94,0.000119,2]
[403188423,1769259013123,1204.94,0.000119,2]
[403188424,1769259013901,1204.94,0.000119,2]
[403188425,1769259014171,1204.94,0.000119,2]
[403188426,1769259014638,1204.94,0.000119,2]
[403188427,1769259015198,1204.94,0.00012,2]
[403188428,1769259015652,1204.94,0.00012,2]
[403188429,1769259016213,1204.94,0.00012,2]
[403188430,1769259016782,1204.94,0.00012,2]
[403188431,1769259017355,1204.94,0.00012,2]
[403188432,1769259017927,1204.94,0.00012,2]
[403188433,1769259018175,4544.0866215,0.00011343,2]
[403188434,1769259018485,1204.94,0.00012,2]
[403188435,1769259019059,1204.94,0.00012,2]
[403188436,1769259019616,1204.94,0.00012,2]
[403188437,1769259020084,1204.94,0.00012,2]
[403188438,1769259020550,1204.94,0.00012,2]
[403188439,1769259021143,1204.94,0.00012,2]
[403188440,1769259021623,1204.94,0.00012,2]
[403188441,1769259022243,1204.94,0.00012,2]
[403188442,1769259023329,1204.94,0.00012,2]
[403188443,1769259023756,1204.94,0.00012,2]
[403188445,1769259024291,1204.94,0.00012,2]
[403188446,1769259024757,1204.94,0.00012,2]
[403188449,1769259025311,1204.94,0.00012,2]
[403188450,1769259025785,1204.94,0.00012,2]
[403188451,1769259026268,1204.94,0.00012,2]
[403188452,1769259026864,1204.94,0.00012,2]
[403188454,1769259027516,1204.94,0.00012,2]
[403188455,1769259027740,5000.0,0.00012001,2]
[403188456,1769259028121,1204.94,0.00012,2]
[403188457,1769259028856,1204.94,0.00012,2]
[403188458,1769259029267,1204.94,0.00012,2]
[403188461,1769259029822,1204.94,0.00012,2]
[403188462,1769259030287,1204.94,0.00012,2]
[403188463,1769259030939,1204.94,0.00012,2]
[403188513,1769259037873,-130.10936079,0.000121,2]
[403188515,1769259037882,-95.39024913,0.00012108,2]
[403188517,1769259037892,-24.77321194,0.00012115,2]
[403188519,1769259037902,-1766.07654777,0.00012227,2]
[403188522,1769259037913,-1859.6765991,0.00012227,2]
[403188524,1769259037922,-1200.0,0.00012227,2]
[403188525,1769259037932,-500.0,0.00012228,2]
[403188528,1769259037947,-430.39963751,0.00012228,2]
[403188530,1769259037958,-45.2562455,0.00012228,2]
[403188532,1769259037969,-454.7437545,0.00012228,2]
[403188534,1769259037979,-500.0,0.00012228,2]
[403188536,1769259037990,-500.0,0.00012228,2]
[403188538,1769259037999,-500.0,0.00012228,2]
[403188540,1769259038009,-500.0,0.00012228,2]
[403188542,1769259038018,-500.0,0.00012228,2]
[403188544,1769259038027,-165.12527345,0.00012228,2]
[403188546,1769259038046,-300.19985175,0.00012228,2]
[403188548,1769259038055,-153.96684583,0.00012228,2]
[403188550,1769259038065,-500.0,0.00012228,2]
[403188552,1769259038074,-500.0,0.00012228,2]
[403188554,1769259038083,-500.0,0.00012228,2]
[403188556,1769259038092,-500.0,0.00012228,2]
[403188558,1769259038102,-500.0,0.00012228,2]
[403188560,1769259038111,-500.0,0.00012228,2]
[403188561,1769259038120,-500.0,0.00012228,2]
[403188563,1769259038129,-500.0,0.00012228,2]
[403188565,1769259038139,-500.0,0.00012228,2]
[403188587,1769259038148,-500.0,0.00012228,2]
[403188590,1769259038367,-500.0,0.00012228,2]
[403188592,1769259038377,-500.0,0.00012228,2]
[403188594,1769259038386,-500.0,0.00012228,2]
[403188596,1769259038395,-500.0,0.00012228,2]
[403188597,1769259038404,-499.44002236,0.00012228,2]
[403188599,1769259038414,-500.0,0.00012228,2]
[403188601,1769259038423,-500.0,0.00012228,2]
[403188603,1769259038433,-500.0,0.00012228,2]
[403188605,1769259038442,-500.0,0.00012228,2]
[403188607,1769259038451,-500.0,0.00012228,2]
[403188609,1769259038461,-500.0,0.00012228,2]
[403188611,1769259038471,-588.36376041,0.00012228,2]
[403188613,1769259038480,-500.0,0.00012228,2]
[403188616,1769259038493,-500.0,0.00012228,2]
[403188618,1769259038502,-500.0,0.00012228,2]
[403188620,1769259038512,-500.0,0.00012228,2]
[403188621,1769259038521,-500.0,0.00012228,2]
[403188623,1769259038531,-500.0,0.00012228,2]
[403188625,1769259038541,-500.0,0.00012228,2]
[403188627,1769259038550,-500.0,0.00012228,2]
[403188629,1769259038559,-465.77321971,0.00012228,2]
[403188631,1769259038569,-464.81973006,0.00012228,2]
[403188633,1769259038579,-500.0,0.00012228,2]
[403188635,1769259038588,-500.0,0.00012228,2]
[403188637,1769259038598,-500.0,0.00012228,2]
[403188639,1769259038608,-500.0,0.00012228,2]
[403188641,1769259038618,-500.0,0.00012228,2]
[403188643,1769259038627,-500.0,0.00012228,2]
[403188645,1769259038637,-500.0,0.00012228,2]
[403188647,1769259038646,-500.0,0.00012228,2]
[403188649,1769259038655,-500.0,0.00012228,2]
[403188651,1769259038664,-500.0,0.00012228,2]
[403188653,1769259038673,-500.0,0.00012228,2]
[403188655,1769259038683,-143.90826645,0.00012228,2]
[403188657,1769259038695,-356.09173355,0.00012228,2]
[403188659,1769259038704,-143.90826645,0.00012228,2]
[403188774,1769259040205,-3e-08,0.00012228,2]
[403188776,1769259040216,-356.09173352,0.00012228,2]
[403188778,1769259040225,-500.0,0.00012228,2]
[403188780,1769259040234,-500.0,0.00012228,2]
[403188782,1769259040243,-500.0,0.00012228,2]
[403188784,1769259040252,-500.0,0.00012228,2]
[403188786,1769259040262,-500.0,0.00012228,2]
[403188788,1769259040271,-500.0,0.00012228,2]
[403188790,1769259040280,-500.0,0.00012228,2]
[403188792,1769259040289,-500.0,0.00012228,2]
[403188794,1769259040299,-500.0,0.00012228,2]
[403188796,1769259040308,-500.0,0.00012228,2]
[403188798,1769259040318,-500.0,0.00012228,2]
[403188800,1769259040328,-500.0,0.00012228,2]
[403188802,1769259040337,-500.0,0.00012228,2]
[403188804,1769259040347,-500.0,0.00012228,2]
[403188806,1769259040356,-500.0,0.00012228,2]
[403188808,1769259040365,-500.0,0.00012228,2]
[403188810,1769259040374,-500.0,0.00012228,2]
[403188812,1769259040385,-146.25267236,0.00012228,2]
[403189183,1769259044856,-353.74732764,0.00012228,2]
[403189185,1769259044866,-500.0,0.00012228,2]
[403189187,1769259044875,-500.0,0.00012228,2]
[403189189,1769259044884,-500.0,0.00012228,2]
[403189191,1769259044893,-422.70573945,0.00012228,2]
[403189193,1769259044902,-500.0,0.00012228,2]
[403189195,1769259044912,-500.0,0.00012228,2]
[403189197,1769259044920,-500.0,0.00012228,2]
[403189199,1769259044930,-500.0,0.00012228,2]
[403189201,1769259044939,-500.0,0.00012228,2]
[403189203,1769259044948,-500.0,0.00012228,2]
[403189205,1769259044960,-500.0,0.00012228,2]
[403189207,1769259044969,-500.0,0.00012228,2]
[403189208,1769259044978,-500.0,0.00012228,2]
[403189210,1769259044988,-500.0,0.00012228,2]
[403189212,1769259044997,-500.0,0.00012228,2]
[403189214,1769259045006,-500.0,0.00012228,2]
[403189216,1769259045015,-500.0,0.00012228,2]
[403189218,1769259045025,-500.0,0.00012228,2]
[403189220,1769259045034,-500.0,0.00012228,2]
[403189222,1769259045043,-500.0,0.00012228,2]
[403189224,1769259045053,-500.0,0.00012228,2]
[403189227,1769259045062,-500.0,0.00012228,2]
[403189230,1769259045071,-500.0,0.00012228,2]
[403189233,1769259045079,-500.0,0.00012228,2]
[403189236,1769259045088,-500.0,0.00012228,2]
[403189239,1769259045097,-500.0,0.00012228,2]
[403189242,1769259045106,-500.0,0.00012228,2]
[403189244,1769259045115,-430.98042483,0.00012228,2]
[403189246,1769259045124,-500.0,0.00012228,2]
[403189248,1769259045133,-500.0,0.00012228,2]
[403189250,1769259045142,-500.0,0.00012228,2]
[403189252,1769259045151,-500.0,0.00012228,2]
[403189253,1769259045160,-500.0,0.00012228,2]
[403189255,1769259045170,-500.0,0.00012228,2]
[403189257,1769259045179,-500.0,0.00012228,2]
[403189259,1769259045188,-300.0,0.00012228,2]
[403189261,1769259045197,-300.0,0.00012228,2]
[403189263,1769259045205,-300.0,0.00012228,2]
[403189265,1769259045215,-300.0,0.00012228,2]
[403189267,1769259045225,-5791.05091459,0.00012229,2]
[403189269,1769259045238,-550.49864065,0.00012229,2]
[403189362,1769259046094,-1782.03125656,0.00012229,2]
[403189364,1769259046106,-23411.49718051,0.00012229,2]
[403189366,1769259046117,-794.03510718,0.00012229,2]
[403189437,1769259048116,-143725.00763407,0.00012229,2]
[403189470,1769259050462,5000.0,0.00012001,2]
[403189480,1769259102558,484.485,0.00011984,2]
[403189481,1769259102605,178.83560877,0.00011984,2]
[403189563,1769259162811,207.83714257,0.00012,2]
[403189599,1769259287508,10000.0,0.00011404,2]
[403189639,1769259418805,277.583618,0.00011404,2]
[403189641,1769259421358,159.5766558,0.00011404,2]
[403189705,1769259584504,3425.99936691,0.00011,10]
[403189717,1769259604547,150.6,0.000119,2]
[403189719,1769259605110,150.6,0.000119,2]
[403189720,1769259605667,150.6,0.000119,2]
[403189721,1769259606144,150.6,0.00012,2]
[403189722,1769259606699,150.6,0.00012,2]
[403189724,1769259607262,150.6,0.00012,2]
[403189725,1769259607807,150.6,0.00012,2]
[403189726,1769259608282,150.6,0.00012,2]
[403189733,1769259620327,20361.5389738,0.00011229,2]
[403189819,1769259929218,-469.15895824,0.00012127,2]
[403189820,1769259930653,-511.78478466,0.00012127,2]
[403189821,1769259949921,5000.0,0.00012,2]
[403189823,1769259958167,5000.0,0.00012,2]
[403189824,1769259966741,5000.0,0.00012,2]
[403189825,1769259974763,4610.25688202,0.00012,2]
[403189826,1769259982774,5000.0,0.00012,2]
[403189827,1769259987229,1897.92,0.00011331,2]
[403189828,1769259990643,5000.0,0.00012,2]
[403189829,1769260005848,5000.0,0.00012,2]
[403189830,1769260013415,160.0,4.2e-07,2]
[403189831,1769260013580,5000.0,0.00012,2]
[403189832,1769260014574,160.0,4.2e-07,2]
[403189833,1769260015643,160.0,4.2e-07,2]
[403189834,1769260016686,160.0,4.2e-07,2]
[403189835,1769260017771,160.0,4.2e-07,2]
[403189836,1769260018866,160.0,4.2e-07,2]
[403189837,1769260019955,160.0,4.2e-07,2]
[403189838,1769260021087,160.0,4.2e-07,2]
[403189839,1769260022236,160.0,4.2e-07,2]
[403189840,1769260028721,5000.0,0.00012,2]
[403189841,1769260036451,5000.0,0.00012,2]
[403189842,1769260051638,5000.0,0.00012,2]
[403189843,1769260059451,5000.0,0.00012,2]
[403189844,1769260062162,1873.76,0.00011324,2]
[403189845,1769260074707,5000.0,0.00012,2]
[403189846,1769260079663,468.32,3.436e-05,2]
[403189847,1769260079945,468.32,3.436e-05,2]
[403189848,1769260082471,5000.0,0.00012,2]
[403189849,1769260094719,-151.0,0.000121,2]
[403189850,1769260094741,-2.30581704,0.000121,2]
[403189852,1769260096472,-148.69418296,0.000121,2]
[403189853,1769260096495,-101.20581701,0.000121,2]
[403189854,1769260097568,5000.0,0.00012,2]
[403189855,1769260097853,-49.79418299,0.000121,2]
[403189856,1769260097873,-114.88446787,0.000121,2]
[403189858,1769260099412,-36.11553213,0.000121,2]
[403189859,1769260099434,-136.7726721,0.000121,2]
[403189865,1769260107890,5000.0,0.00012,2]
[403189870,1769260122837,5000.0,0.00012,2]
[403189871,1769260130973,5000.0,0.00012,2]
[403189872,1769260142953,1849.91,0.00011344,2]
[403189873,1769260146165,5000.0,0.00012,2]
[403189874,1769260154634,5000.0,0.00012,2]
[403189875,1769260169840,5000.0,0.00012,2]
[403189876,1769260177596,2370.18095801,0.00012,2]
[403189878,1769260185616,151.0,0.0001,2]
[403189879,1769260189126,151.0,0.0001,2]
[403189880,1769260192568,151.0,0.0001,2]
[403189881,1769260192832,5000.0,0.00012,2]
[403189882,1769260197235,151.0,0.0001,2]
[403189883,1769260197859,151.0,0.0001,2]
[403189884,1769260203530,151.0,0.0001188,2]
[403189885,1769260204578,151.0,0.0001188,2]
[403189886,1769260204926,1204.94,0.0001,2]
[403189887,1769260205534,1204.94,0.0001,2]
[403189888,1769260206150,1204.94,0.000101,2]
[403189889,1769260206834,1204.94,0.000101,2]
[403189890,1769260207379,1204.94,0.000102,2]
[403189891,1769260207950,1204.94,0.000102,2]
[403189892,1769260208490,151.0,0.00012,2]
[403189893,1769260208523,1204.94,0.000102,2]
[403189894,1769260209283,1204.94,0.000103,2]
[403189895,1769260209827,1204.94,0.000103,2]
[403189896,1769260209913,151.0,0.0001188,2]
[403189897,1769260210392,1204.94,0.000104,2]
[403189898,1769260210937,1204.94,0.000104,2]
[403189899,1769260211392,1204.94,0.000104,2]
[403189900,1769260212234,1204.94,0.000105,2]
[403189901,1769260212542,1204.94,0.000105,2]
[403189902,1769260213100,1204.94,0.000105,2]
[403189903,1769260213641,1204.94,0.000106,2]
[403189904,1769260214201,1204.94,0.000106,2]
[403189905,1769260214664,1204.94,0.000107,2]
[403189906,1769260215129,1204.94,0.000107,2]
[403189907,1769260215316,5000.0,0.00012,2]
[403189910,1769260215677,1204.94,0.000107,2]
[403189911,1769260216236,1204.94,0.000108,2]
[403189912,1769260216798,1204.94,0.000108,2]
[403189913,1769260217357,1204.94,0.000109,2]
[403189914,1769260217982,1204.94,0.000109,2]
[403189915,1769260218532,1204.94,0.000109,2]
[403189916,1769260219098,1204.94,0.00011,2]
[403189917,1769260219662,1204.94,0.00011,2]
[403189918,1769260220228,1204.94,0.000111,2]
[403189919,1769260220839,1204.94,0.000111,2]
[403189920,1769260221383,1204.94,0.000111,2]
[403189921,1769260221927,1204.94,0.000112,2]
[403189922,1769260222753,1204.94,0.000112,2]
[403189923,1769260223199,1204.94,0.000113,2]
[403189924,1769260223803,1204.94,0.000113,2]
[403189925,1769260224398,1204.94,0.000113,2]
[403189926,1769260225615,1826.37,0.00011538,2]
[403189927,1769260230321,1204.94,0.000114,2]
[403189928,1769260230888,1204.94,0.000114,2]
[403189929,1769260231448,1204.94,0.000114,2]
[403189947,1769260232012,1204.94,0.000115,2]
[403189980,1769260233335,1204.94,0.000115,2]
[403189981,1769260233414,1204.94,0.000116,2]
[403189982,1769260233757,1204.94,0.000116,2]
[403189983,1769260234133,1204.94,0.000116,2]
[403189984,1769260234619,1204.94,0.000117,2]
[403189985,1769260235182,1204.94,0.000117,2]
[403189986,1769260235678,1204.94,0.000118,2]
[403189987,1769260236162,1204.94,0.000118,2]
[403189988,1769260236741,1204.94,0.000118,2]
[403189989,1769260237283,1204.94,0.000119,2]
[403189998,1769260237917,5000.0,0.00012,2]
[403190000,1769260238020,-14.2273279,0.000121,2]
[403190001,1769260238029,-519.6926721,0.000121,2]
[403190002,1769260238076,-71.3073279,0.000121,2]
[403190003,1769260238085,-1200.0,0.00012123,2]
[403190004,1769260238094,-500.0,0.00012124,2]
[403190005,1769260238104,-226.36726327,0.00012124,2]
[403190006,1769260238114,-565.37375116,0.00012124,2]
[403190007,1769260238123,-500.0,0.00012124,2]
[403190008,1769260238133,-500.0,0.00012124,2]
[403190009,1769260238142,-166.60444693,0.00012124,2]
[403190010,1769260238151,-500.0,0.00012124,2]
[403190011,1769260238162,-273.97480219,0.00012124,2]
[403190012,1769260238171,-500.0,0.00012124,2]
[403190013,1769260238181,-500.0,0.00012124,2]
[403190014,1769260238190,-500.0,0.00012124,2]
[403190015,1769260238200,-380.30063772,0.00012124,2]
[403190016,1769260238209,-500.0,0.00012124,2]
[403190017,1769260238219,-500.0,0.00012124,2]
[403190018,1769260238228,-500.0,0.00012124,2]
[403190019,1769260238237,-500.0,0.00012124,2]
[403190020,1769260238246,-500.0,0.00012124,2]
[403190021,1769260238256,-500.0,0.00012124,2]
[403190022,1769260238265,-500.0,0.00012124,2]
[403190023,1769260238275,-500.0,0.00012124,2]
[403190024,1769260238284,-500.0,0.00012124,2]
[403190025,1769260238293,-500.0,0.00012124,2]
[403190026,1769260238302,-500.0,0.00012124,2]
[403190027,1769260238312,-500.0,0.00012124,2]
[403190028,1769260238322,-500.0,0.00012124,2]
[403190029,1769260238331,-500.0,0.00012124,2]
[403190030,1769260238341,-500.0,0.00012124,2]
[403190031,1769260238350,-500.0,0.00012124,2]
[403190032,1769260238359,-500.0,0.00012124,2]
[403190033,1769260238368,-500.0,0.00012124,2]
[403190034,1769260238377,-500.0,0.00012124,2]
[403190035,1769260238391,-500.0,0.00012124,2]
[403190036,1769260238401,-500.0,0.00012124,2]
[403190037,1769260238410,-500.0,0.00012124,2]
[403190038,1769260238420,-500.0,0.00012124,2]
[403190039,1769260238429,-209.23972079,0.00012124,2]
[403190040,1769260238438,-500.0,0.00012124,2]
[403190041,1769260238447,-500.0,0.00012124,2]
[403190042,1769260238460,-500.0,0.00012124,2]
[403190043,1769260238470,-500.0,0.00012124,2]
[403190044,1769260238480,-500.0,0.00012124,2]
[403190045,1769260238489,-500.0,0.00012124,2]
[403190046,1769260238499,-500.0,0.00012124,2]
[403190047,1769260238508,-500.0,0.00012124,2]
[403190048,1769260238518,-500.0,0.00012124,2]
[403190049,1769260238532,-500.0,0.00012124,2]
[403190050,1769260238542,-500.0,0.00012124,2]
[403190051,1769260238552,-500.0,0.00012124,2]
[403190052,1769260238562,-500.0,0.00012124,2]
[403190053,1769260238572,-500.0,0.00012124,2]
[403190054,1769260238583,-500.0,0.00012124,2]
[403190055,1769260238593,-500.0,0.00012124,2]
[403190056,1769260238603,-500.0,0.00012124,2]
[403190057,1769260238613,-500.0,0.00012124,2]
[403190058,1769260238624,-500.0,0.00012124,2]
[403190059,1769260238633,-500.0,0.00012124,2]
[403190060,1769260238643,-500.0,0.00012124,2]
[403190061,1769260238653,-500.0,0.00012124,2]
[403190062,1769260238664,-500.0,0.00012124,2]
[403190063,1769260238674,-500.0,0.00012124,2]
[403190064,1769260238684,-500.0,0.00012124,2]
[403190065,1769260238694,-500.0,0.00012124,2]
[403190066,1769260238704,-580.96300586,0.00012124,2]
[403190067,1769260238713,-500.0,0.00012124,2]
[403190068,1769260238723,-500.0,0.00012124,2]
[403190069,1769260238732,-500.0,0.00012124,2]
[403190070,1769260238742,-500.0,0.00012124,2]
[403190071,1769260238751,-500.0,0.00012124,2]
[403190072,1769260238761,-500.0,0.00012124,2]
[403190073,1769260238771,-500.0,0.00012124,2]
[403190074,1769260238781,-500.0,0.00012124,2]
[403190075,1769260238795,-500.0,0.00012124,2]
[403190076,1769260238805,-500.0,0.00012124,2]
[403190077,1769260238814,-500.0,0.00012124,2]
[403190078,1769260238823,-500.0,0.00012124,2]
[403190079,1769260238833,-500.0,0.00012124,2]
[403190080,1769260238842,-500.0,0.00012124,2]
[403190081,1769260238851,-500.0,0.00012124,2]
[403190082,1769260238861,-500.0,0.00012124,2]
[403190083,1769260238871,-300.0,0.00012124,2]
[403190084,1769260238882,-300.0,0.00012124,2]
[403190085,1769260238892,-300.0,0.00012124,2]
[403190086,1769260238902,-300.0,0.00012124,2]
[403190087,1769260238912,-300.0,0.00012124,2]
[403190088,1769260238921,-283.37970292,0.00012125,2]
[403190089,1769260238931,-500.0,0.00012126,2]
[403190090,1769260238940,-50000.0,0.00012126,2]
[403190091,1769260238950,-207.83714257,0.00012126,2]
[403190092,1769260238959,-7729.57222329,0.00012127,2]
[403190093,1769260238971,-3000.0,0.00012127,2]
[403190094,1769260238982,-3464.06302501,0.00012127,2]
[403190095,1769260238993,-2015.51730841,0.00012127,2]
[403190096,1769260239005,-1778.72668997,0.00012127,2]
[403190097,1769260239027,-4674.67948274,0.00012127,2]
[403190880,1769260260201,5000.0,0.00012,2]
[403190881,1769260283425,5000.0,0.00012,2]
[403190882,1769260302592,484.485,0.00011884,2]
[403190883,1769260302715,178.83560877,0.00011884,2]
[403190884,1769260306338,5000.0,0.00012,2]
[403190885,1769260314556,1803.12,0.00011564,2]
[403190888,1769260328442,5000.0,0.00012,2]
[403190898,1769260350643,5000.0,0.00012,2]
[403190900,1769260372935,5000.0,0.00012,2]
[403190907,1769260395215,5000.0,0.00012,2]
[403190908,1769260395395,1780.18,0.00011556,2]
[403190918,1769260417988,5000.0,0.00012,2]
[403190928,1769260440714,5000.0,0.00012,2]
[403190938,1769260463195,5000.0,0.00012,2]
[403190941,1769260475644,1757.52,0.00011545,2]
[403190951,1769260486010,5000.0,0.00012,2]
[403190956,1769260508548,5000.0,0.00012,2]
[403190957,1769260531856,5000.0,0.00012,2]
[403190958,1769260555252,5000.0,0.00012,2]
[403190959,1769260555842,1735.15,0.000116,2]
[403190961,1769260576914,300.0,0.00011125,2]
[403190962,1769260577561,1200.58272243,0.00012,2]
[403190963,1769260596341,800.0,0.00011852,2]
[403190964,1769260596394,800.0,0.0001197,2]
[403190965,1769260596427,800.0,0.00011977,2]
[403190966,1769260596479,800.0,0.00011948,2]
[403190969,1769260636212,1713.07,0.0001161,2]
[403190973,1769260696153,4800.410345,0.00011121,2]
[403190976,1769260711317,13140.006718,0.00012,2]
[403190977,1769260716154,1691.26,0.0001162,2]
[403190978,1769260725155,1564.8167348,0.00011117,2]
[403190980,1769260762190,500.0,0.00011848,2]
[403190981,1769260762354,507.53367083,0.00011985,2]
[403190982,1769260796229,1669.74,0.00011624,2]
[403190987,1769260804186,150.6,0.0001,2]
[403190988,1769260804645,150.6,0.000103,2]
[403190989,1769260805221,150.6,0.000105,2]